[Event "FIDE WY-U16 Olympiad 2022"]
[Site "Nakhchivan"]
[Date "2022.10.04"]
[Round "3.3"]
[White "Iunusov, Nuriddin"]
[Black "Schnell, Sebastian Narayana"]
[Result "1/2-1/2"]
[ECO "B12"]
[WhiteElo "1940"]
[BlackElo "1847"]
[Annotator "TA"]
[PlyCount "64"]
[EventDate "2022.10.02"]
[EventType "team-tourn"]
[EventCountry "AZE"]
[SourceTitle "playchess.com"]
[Source "ChessBase"]
[SourceQuality "1"]
[WhiteTeam "Kyrgyzstan"]
[BlackTeam "Panama"]
[WhiteTeamCountry "KGZ"]
[BlackTeamCountry "PAN"]
[TimeControl "40/5400+30:1800+30"]

{[%evp 9,64,-32,-30,-34,115,99,103,115,121,100,95,47,61,25,53,44,42,52,37,37,26,27,45,35,63,36,50,49,60,62,47,0,0,0,0,-16,0,-108,-14,-29,0,0,0,0,0,0,0,0,0,0,0,0,0,-4,0,-7,0]} 1. e4 {[%emt 0:00:05]} c6 {[%emt 0:00:10]} 2. d4 {[%emt 0:00:37]} d5 {[%emt 0:00:09]} 3. f3 {[%emt 0:00:39]} Qb6 {[%emt 0:02:27]} 4. Nc3 {[%emt 0:11:22]} e5 {[%emt 0:02:34]} 5. Nge2 {[%emt 0:15:39]} dxe4 {[%emt 0:11:20]} 6. Nxe4 {[%emt 0:05:57] [#] B12: Caro-Kann: Advance Variation.} Be6 $146 {[%emt 0:04:51]} (6... Nf6) (6... Nf6 $15 {stays ahead.}) ({Predecessor:} 6... Nf6 7. Qd3 Na6 8. c3 Be6 9. Nxf6+ gxf6 10. Be3 O-O-O 11. Qc2 h5 12. Nc1 exd4 13. Bxd4 Rxd4 14. cxd4 {0-1 (20) Bose,P (2118)-Paichadze,L (2572) Dhaka 2017}) 7. dxe5 $16 {[%emt 0:04:06]} Nd7 {[%emt 0:03:31]} 8. Nd6+ {[%emt 0:19:27] White is better.} Bxd6 {[%emt 0:00:09]} 9. exd6 {[%emt 0:00:39]} ({Don't play} 9. Qxd6 $6 Ne7 $11) 9... O-O-O {[%emt 0:00:49]} 10. Qd4 {[%emt 0:14:17]} (10. b3 $16) 10... c5 $14 {[%emt 0:08:35]} 11. Qf2 {[%emt 0:00:14]} Ngf6 {[%emt 0:03:28] White must now prevent ...Rhe8.} 12. Nc3 {[%emt 0:02:26]} Rhe8 {[%emt 0:08:27]} 13. Be2 {[%emt 0:00:09]} Bc4 {[%emt 0:03:12]} 14. O-O {[%emt 0:01:15]} Bxe2 {[%emt 0:00:48]} 15. Nxe2 {[%emt 0:00:01]} Qxd6 {[%emt 0:04:13]} 16. Nc3 {[%emt 0:03:31]} Qc6 {[%emt 0:02:42]} 17. Be3 {[%emt 0:04:30]} b6 {[%emt 0:04:19]} 18. a4 {[%emt 0:00:57]} Nd5 {[%emt 0:07:03]} 19. Nxd5 {[%emt 0:02:05]} Qxd5 {[%emt 0:00:09]} 20. Rfe1 {[%emt 0:01:19]} (20. a5 $14 {should be considered.}) 20... Ne5 $11 {[%emt 0:04:48][%cal Bd7e5,Be5c6,Bc6b4,Bb4a2][%mdl 32]} 21. b3 {[%emt 0:01:19]} Nc6 {[%emt 0:01:04]} 22. Rab1 {[%emt 0:04:05]} Nb4 {[%emt 0:05:11]} 23. Re2 {[%emt 0:01:04] [#]} (23. Rbc1 $11) 23... Qf5 {[%emt 0:01:30]} (23... Nxc2 $1 $17 {[%cal Od5d1][%mdl 512] aiming for ...Qd1+!} 24. Rd2 (24. Rxc2 Qd1+ 25. Rxd1 Rxd1+ 26. Qf1 Rxf1+ 27. Kxf1 Rxe3 $17) 24... Qf5 25. Rxc2 {[#]} Rxe3 $1 {[%mdl 512]} 26. Qxe3 Qxc2) 24. Rc1 {[%emt 0:01:37]} Na2 {[%emt 0:04:58]} 25. Rce1 {[%emt 0:00:13] The position is equal.} Nc3 {[%emt 0:01:12]} 26. Rd2 {[%emt 0:00:27]} Nd5 {[%emt 0:02:38]} 27. Rde2 {[%emt 0:00:34]} Nxe3 {[%emt 0:02:19]} 28. Rxe3 {[%emt 0:00:02]} Rxe3 {[%emt 0:00:07]} 29. Rxe3 {[%emt 0:00:23]} Rd1+ {[%emt 0:01:44]} 30. Re1 {[%emt 0:00:00]} Qd5 {[%emt 0:00:53]} 31. Qe3 {[%emt 0:03:08]} Qd4 {[%emt 0:05:01]} 32. Qxd4 {[%emt 0:00:37]} Rxd4 {[%emt 0:00:13] Weighted Error Value: White=0.17 (very precise) /Black=0.19 (very precise)} 1/2-1/2

[Event "FIDE WY-U16 Olympiad 2022"]
[Site "Nakhchivan"]
[Date "2022.10.04"]
[Round "3.4"]
[White "Omonova, Umida"]
[Black "Aydin, Gulenay"]
[Result "1/2-1/2"]
[ECO "B52"]
[WhiteElo "2078"]
[BlackElo "2109"]
[Annotator "TA"]
[PlyCount "60"]
[EventDate "2022.10.02"]
[EventType "team-tourn"]
[EventCountry "AZE"]
[SourceTitle "playchess.com"]
[Source "ChessBase"]
[SourceQuality "1"]
[WhiteTeam "Uzbekistan"]
[BlackTeam "Turkey"]
[WhiteTeamCountry "UZB"]
[BlackTeamCountry "TUR"]
[TimeControl "40/5400+30:1800+30"]

{[%evp 20,60,-6,-7,-4,-10,0,0,0,0,0,0,0,0,0,0,0,0,0,0,0,0,0,0,0,0,0,0,0,-7,0,-23,-10,-20,0,0,0,0,0,0,0,0,0]} 1. e4 {[%emt 0:00:04]} c5 {[%emt 0:00:11]} 2. Nf3 {[%emt 0:00:09]} d6 {[%emt 0:00:04]} 3. Bb5+ {[%emt 0:00:28]} Bd7 {[%emt 0:00:06]} 4. Bxd7+ {[%emt 0:00:12]} Qxd7 {[%emt 0:00:02]} 5. O-O {[%emt 0:00:12]} Nc6 {[%emt 0:00:05]} 6. Re1 {[%emt 0:00:05]} Nf6 {[%emt 0:00:22][%cal Bg8f6,Bf6e4,Be4d2][%mdl 32]} 7. c3 {[%emt 0:00:08]} e6 {[%emt 0:00:14]} 8. d4 {[%emt 0:00:27]} cxd4 {[%emt 0:00:07]} 9. cxd4 {[%emt 0:00:05]} d5 {[%emt 0:00:07]} 10. e5 {[%emt 0:00:06]} Ne4 {[%emt 0:00:04]} 11. Nbd2 {[%emt 0:00:06]} Nxd2 $1 {[%emt 0:00:06] B52: Sicilian: Moscow Variation with 3...Bd7.} ({Don't take} 11... Bb4 12. Nxe4 dxe4 13. Rxe4 $16) 12. Bxd2 {[%emt 0:00:06]} Bb4 {[%emt 0:00:05]} 13. Rc1 {[%emt 0:06:11][%cal Oc1c6] [#] Hoping for Rxc6!} Bxd2 {[%emt 0:00:30]} 14. Qxd2 {[%emt 0:00:12]} O-O {[%emt 0:00:28]} 15. Rc3 {[%emt 0:06:22]} Rfc8 {[%emt 0:07:39]} 16. Rec1 {[%emt 0:09:09]} Ne7 {[%emt 0:01:35] [#]} 17. g3 $146 {[%emt 0:02:11]} ({Predecessor:} 17. b3 h6 18. Ne1 Rxc3 19. Rxc3 Rc8 20. Nc2 Rc7 21. g3 Rxc3 22. Qxc3 {½-½ (22) Brkic,A (2593)-Saric,A (2541) Vinkovci 2020}) 17... h6 {[%emt 0:00:40]} 18. h4 {[%emt 0:01:50]} Rxc3 {[%emt 0:00:44]} (18... Rc7) 19. Rxc3 {[%emt 0:00:08]} Rc8 {[%emt 0:00:06]} 20. Rxc8+ {[%emt 0:07:03]} Qxc8 $11 {[%emt 0:00:41][%mdl 4096] Endgame KQN-KQN} 21. Qb4 {[%emt 0:01:15]} Qc7 {[%emt 0:04:20]} 22. a3 {[%emt 0:11:58]} Nc6 {[%emt 0:04:26]} 23. Qc3 {[%emt 0:00:18]} Qb6 {[%emt 0:10:02]} 24. Kg2 {[%emt 0:04:37]} Kf8 {[%emt 0:02:22]} 25. g4 {[%emt 0:03:43]} Kg8 {[%emt 0:10:56]} 26. Qd2 {[%emt 0:03:15] The position is equal.} Qd8 {[%emt 0:11:30]} 27. b4 {[%emt 0:03:16]} a6 {[%emt 0:04:05]} 28. h5 {[%emt 0:06:14]} Qe7 {[%emt 0:07:01]} 29. Kg3 {[%emt 0:01:24]} Qd8 {[%emt 0:03:46]} 30. Kg2 {[%emt 0:06:02]} Qe7 {[%emt 0:06:51] An uneventful encounter.  Weighted Error Value: White=0.02 (flawless) /Black=0.02 (flawless)} 1/2-1/2

[Event "FIDE WY-U16 Olympiad 2022"]
[Site "Nakhchivan"]
[Date "2022.10.04"]
[Round "3.4"]
[White "Castillo Beitia, Ashley Alexandra"]
[Black "Berdibaeva, Edisa"]
[Result "0-1"]
[ECO "D15"]
[WhiteElo "1674"]
[BlackElo "1617"]
[Annotator "NA RC COMBH"]
[PlyCount "100"]
[EventDate "2022.10.02"]
[EventType "team-tourn"]
[EventCountry "AZE"]
[SourceTitle "playchess.com"]
[Source "ChessBase"]
[SourceQuality "1"]
[WhiteTeam "Panama"]
[BlackTeam "Kyrgyzstan"]
[WhiteTeamCountry "PAN"]
[BlackTeamCountry "KGZ"]
[TimeControl "40/5400+30:1800+30"]

1. d4 {[%emt 0:00:03]} d5 {[%emt 0:00:14]} 2. c4 {[%emt 0:00:14]} c6 {[%emt 0:00:16]} 3. Nc3 {[%emt 0:00:20]} Nf6 {[%emt 0:00:12]} 4. Nf3 {[%emt 0:00:32]} dxc4 {[%emt 0:01:02]} 5. e4 {[%emt 0:02:30]} b5 {[%emt 0:00:59]} 6. Be2 {[%emt 0:02:16]} e6 {[%emt 0:03:52]} 7. O-O {[%emt 0:03:56]} Be7 {[%emt 0:05:05]} 8. b3 {[%emt 0:12:25]} cxb3 {[%emt 0:15:39]} 9. e5 {[%emt 0:05:15]} Nd5 {[%emt 0:05:03]} 10. Qxb3 {[%emt 0:03:27]} Nxc3 {[%emt 0:10:08]} 11. Qxc3 {[%emt 0:00:11]} a5 {[%emt 0:02:54]} 12. Be3 {[%emt 0:08:25]} Ba6 {[%emt 0:06:37]} 13. Rac1 {[%emt 0:05:10]} b4 {[%emt 0:07:10]} 14. Qb2 {[%emt 0:02:13]} Bxe2 {[%emt 0:06:51]} 15. Qxe2 {[%emt 0:00:08]} O-O {[%emt 0:00:52]} 16. Nd2 {[%emt 0:05:49]} Qd5 {[%emt 0:03:17]} 17. Nc4 {[%emt 0:04:58]} Nd7 {[%emt 0:02:23]} 18. Rfd1 {[%emt 0:05:31]} Qb5 {[%emt 0:06:10]} 19. Rd3 {[%emt 0:05:34]} Rfc8 {[%emt 0:06:50]} 20. Bd2 {[%emt 0:10:59]} c5 {[%emt 0:02:43]} 21. Qg4 {[%emt 0:03:56]} cxd4 {[%emt 0:04:54]} 22. Qxd4 {[%emt 0:04:46]} Rxc4 {[%emt 0:01:56]} 23. Rxc4 {[%emt 0:00:54]} Nxe5 {[%emt 0:00:18]} 24. Qe4 {[%emt 0:05:50]} Rf8 {[%emt 0:00:52]} 25. Rcd4 {[%emt 0:01:51]} Nxd3 {[%emt 0:00:06]} 26. Rxd3 {[%emt 0:00:05]} Qa4 {[%emt 0:00:44]} 27. Rg3 {[%emt 0:01:25]} Bf6 {[%emt 0:01:10]} 28. Rh3 {[%emt 0:00:41]} g6 {[%emt 0:00:17]} 29. g4 {[%emt 0:00:36]} Bg7 {[%emt 0:01:41]} 30. g5 {[%emt 0:01:19]} Qd1+ {[%emt 0:01:16]} 31. Be1 {[%emt 0:00:17]} Rc8 {[%emt 0:02:20]} 32. Rd3 {[%emt 0:01:34]} Qh5 {[%emt 0:01:18]} 33. h4 {[%emt 0:00:23]} h6 {[%emt 0:00:31]} 34. Bd2 {[%emt 0:01:17]} hxg5 {[%emt 0:00:32]} 35. Bxg5 {[%emt 0:00:17]} Bh6 {[%emt 0:00:42]} 36. Qb7 {[%emt 0:00:39]} Rf8 {[%emt 0:00:43]} 37. Qe7 {[%emt 0:01:11]} Bxg5 {[%emt 0:00:30]} 38. hxg5 {[%emt 0:00:06]} Qg4+ {[%emt 0:00:19]} 39. Rg3 {[%emt 0:00:37]} Qd1+ {[%emt 0:00:20]} 40. Kg2 {[%emt 0:00:14]} Qd8 {[%emt 0:00:23]} 41. Qa7 {[%emt 0:30:10]} Qa8+ {[%emt 0:30:08]} 42. Qxa8 {[%emt 0:00:35]} Rxa8 {[%emt 0:00:04]} 43. Rb3 {[%emt 0:00:00]} Rc8 {[%emt 0:00:00]} 44. Rb2 {[%emt 0:00:00]} Rc5 {[%emt 0:00:00]} 45. f4 {[%emt 0:00:00]} e5 {[%emt 0:00:00]} 46. Kf3 {[%emt 0:00:00]} exf4 {[%emt 0:00:00]} 47. Kxf4 {[%emt 0:00:00]} f6 {[%emt 0:00:00]} 48. gxf6 {[%emt 0:00:00]} Kf7 {[%emt 0:00:00]} 49. Rb3 {[%emt 0:00:00]} Kxf6 {[%emt 0:00:00]} 50. a3 {[%emt 0:00:00]} Rc3 {[%emt 0:00:00]} 0-1

[Event "FIDE WY-U16 Olympiad 2022"]
[Site "Nakhchivan"]
[Date "2022.10.04"]
[Round "3.5"]
[White "Pranav Vijay"]
[Black "Sapenov, Daniyal"]
[Result "1/2-1/2"]
[ECO "C78"]
[WhiteElo "2265"]
[BlackElo "2323"]
[Annotator "TA"]
[PlyCount "80"]
[EventDate "2022.10.02"]
[EventType "team-tourn"]
[EventCountry "AZE"]
[SourceTitle "playchess.com"]
[Source "ChessBase"]
[SourceQuality "1"]
[WhiteTeam "India"]
[BlackTeam "Kazakhstan"]
[WhiteTeamCountry "IND"]
[BlackTeamCountry "KAZ"]
[TimeControl "40/5400+30:1800+30"]

{[%evp 20,80,10,9,10,-131,-123,-127,-127,-133,-126,-140,-128,-130,-122,-132,-96,-88,-93,-90,-89,-91,-86,-95,-77,-92,-88,-115,-112,-112,-102,-113,-121,-118,-109,-135,-140,-152,-125,-127,-99,-131,-89,-108,0,-131,-80,-149,-100,-106,-99,-98,-54,-68,0,-106,-26,-79,-66,-142,-29,-94,-81]} 1. e4 {[%emt 0:00:03]} e5 {[%emt 0:00:08]} 2. Nf3 {[%emt 0:00:04]} Nc6 {[%emt 0:00:09]} 3. Bb5 {[%emt 0:00:06][%cal Bf1b5,Bb5a4,Ba4b3][%mdl 32]} a6 {[%emt 0:00:10]} 4. Ba4 {[%emt 0:00:02]} Nf6 {[%emt 0:00:09]} 5. O-O {[%emt 0:00:04]} b5 {[%emt 0:00:09]} 6. Bb3 {[%emt 0:00:03]} Bc5 {[%emt 0:00:09]} 7. c3 {[%emt 0:02:06]} d6 {[%emt 0:00:14]} 8. d3 {[%emt 0:00:53]} h6 {[%emt 0:00:41]} 9. h3 {[%emt 0:00:05]} O-O {[%emt 0:01:35]} 10. Nbd2 {[%emt 0:00:05]} Re8 {[%emt 0:06:03]} 11. Re1 {[%emt 0:00:10]} Be6 {[%emt 0:00:24] [#] C78: Ruy Lopez: Archangelsk and Möller Defences.} 12. Nh4 $146 {[%emt 0:07:45] [#]} (12. Bxe6 $11 fxe6 13. b4) ({Predecessor:} 12. Bc2 d5 13. exd5 Bxd5 14. b4 Bf8 15. a4 g6 16. Qe2 Bg7 17. Ne4 Nxe4 18. dxe4 Bc4 19. Qe3 {0-1 (61) Caruana,F (2828)-Harikrishna,P (2726) Saint Louis 2019}) 12... Ng4 $1 $17 {[%emt 0:18:40][%mdl 512]} 13. hxg4 {[%emt 0:33:39] Nf5 is the strong threat.} Qxh4 {[%emt 0:01:02]} 14. Qe2 Bxg4 {[%emt 0:04:38]} 15. Nf3 {[%emt 0:05:22]} Qh5 {[%emt 0:05:44][%cal Oe8e6]} 16. Be3 {[%emt 0:11:52]} Ne7 {[%emt 0:04:26] Hoping for ...Ng6.} 17. Bd1 {[%emt 0:02:12]} Bxf3 {[%emt 0:05:40]} 18. Qxf3 {[%emt 0:00:14]} Qxf3 {[%emt 0:00:09]} 19. gxf3 {[%emt 0:00:37]} Bxe3 {[%emt 0:18:18]} 20. fxe3 {[%emt 0:00:02]} g5 {[%emt 0:00:15]} 21. Kf2 {[%emt 0:00:38]} Ng6 {[%emt 0:01:38]} 22. Rh1 {[%emt 0:00:14]} Kg7 {[%emt 0:00:05]} 23. Bb3 {[%emt 0:04:14]} Rab8 {[%emt 0:01:18]} 24. Rh5 {[%emt 0:01:38]} c6 {[%emt 0:03:17]} 25. Rah1 {[%emt 0:02:31]} Rh8 {[%emt 0:01:34]} 26. Kg3 {[%emt 0:00:07]} a5 {[%emt 0:01:57][%cal Ba6a5,Ba5a4][%mdl 32]} 27. a3 {[%emt 0:02:13]} Rbf8 {[%emt 0:04:10]} 28. Bc2 {[%emt 0:08:53]} a4 {[%emt 0:05:17]} 29. d4 {[%emt 0:02:10]} Rb8 {[%emt 0:03:09]} 30. Rd1 {[%emt 0:01:04]} Rhd8 {[%emt 0:00:42]} 31. Rdh1 {[%emt 0:01:35]} Rh8 {[%emt 0:01:07]} 32. Rd1 $1 {[%emt 0:00:06]} Rbd8 {[%emt 0:02:29]} ({Black should play} 32... Nh4 {White must now prevent ...Kg6.} 33. dxe5 Kg6) 33. Bd3 {[%emt 0:00:24]} (33. Rh2 $142) 33... Ne7 {[%emt 0:04:11]} (33... Nh4 $142 34. Be2 f5 35. exf5 Nxf5+ 36. Kf2 Rhf8) 34. Rdh1 {[%emt 0:04:39]} Rb8 {[%emt 0:01:22]} 35. Rd1 {[%emt 0:04:02]} Rhd8 {[%emt 0:02:20]} 36. Rdh1 {[%emt 0:00:08]} Rh8 {[%emt 0:00:10]} (36... Ng8 $5 {[%cal Rc6c5]}) 37. Rd1 $1 {[%emt 0:00:30]} c5 {[%emt 0:00:50]} ({Black should try} 37... f6 $17 38. Bc2 Rbd8) 38. dxe5 {[%emt 0:02:06]} (38. dxc5 $11 dxc5 39. f4) 38... dxe5 {[%emt 0:00:12]} 39. Bf1 {[%emt 0:00:02] [#]} (39. f4 $15) 39... c4 {[%emt 0:01:21]} (39... Ng8 $1 $17 {Strongly threatening ...Rb6.} 40. Rh2 Nf6) 40. Rd7 {[%emt 0:00:01]} (40. Rh2 $11) 40... Ng8 {[%emt 0:00:22] Weighted Error Value: White=0.20 (precise) /Black=0.28 (precise)} 1/2-1/2

[Event "FIDE WY-U16 Olympiad 2022"]
[Site "Nakhchivan"]
[Date "2022.10.04"]
[Round "3.5"]
[White "Davudov, Tunar"]
[Black "Anand, Batsukh"]
[Result "1-0"]
[ECO "B46"]
[WhiteElo "2043"]
[BlackElo "2202"]
[Annotator "TA"]
[PlyCount "109"]
[EventDate "2022.10.02"]
[EventType "team-tourn"]
[EventCountry "AZE"]
[SourceTitle "playchess.com"]
[Source "ChessBase"]
[SourceQuality "1"]
[WhiteTeam "Azerbaijan"]
[BlackTeam "Mongolia"]
[WhiteTeamCountry "AZE"]
[BlackTeamCountry "MGL"]
[TimeControl "40/5400+30:1800+30"]

{[%evp 11,109,28,27,4,45,49,56,58,70,50,92,103,140,118,134,122,141,137,147,150,232,177,203,143,135,95,109,95,99,105,121,129,133,127,123,120,110,110,130,116,156,127,179,176,165,163,156,158,189,127,129,71,279,261,481,476,468,338,461,320,296,307,658,647,620,596,598,626,853,864,1003,937,29979,29980,29980,29981,29981,29982,29982,29982,29982,29983,29985,29986,29986,29987,29988,29987,29987,29988,29992,29993,29993,29994,29994,29995,29995,29996,29996,29997]} 1. e4 {[%emt 0:00:02]} c5 {[%emt 0:00:08]} 2. Nf3 {[%emt 0:00:05]} e6 {[%emt 0:00:05]} 3. d4 {[%emt 0:00:07]} cxd4 {[%emt 0:00:05]} 4. Nxd4 {[%emt 0:00:04]} Nc6 {[%emt 0:00:07]} 5. Nc3 {[%emt 0:00:19]} a6 {[%emt 0:00:13]} 6. Be3 {[%emt 0:00:10]} Nf6 {[%emt 0:00:18]} 7. f3 {[%emt 0:02:29] [#] 7.a3 is setting a new trend. B46: Sicilian: Taimanov: 5 Nc3 a6.} e5 $146 {[%emt 0:12:40]} ({Predecessor:} 7... d5 8. exd5 Nxd5 9. Nxc6 bxc6 10. Nxd5 cxd5 11. Bd3 Qh4+ 12. g3 Qb4+ 13. Qd2 Qxd2+ 14. Kxd2 Bd6 {½-½ (59) Savchenko,B (2607)-Grachev,B (2628) Moscow 2016}) 8. Nde2 {[%emt 0:28:13]} d6 {[%emt 0:07:55]} 9. Qd2 {[%emt 0:08:08] White is slightly better.} Be6 {[%emt 0:01:57]} 10. O-O-O {[%emt 0:02:55]} b5 {[%emt 0:21:25]} 11. g4 {[%emt 0:05:00][%cal Bg2g4,Bg4g5][%mdl 32]} Qa5 {[%emt 0:09:27] Hoping for ...b4.} 12. Kb1 {[%emt 0:05:46]} Rc8 {[%emt 0:14:35]} 13. h4 {[%emt 0:12:31]} Ne7 {[%emt 0:11:05]} 14. g5 {[%emt 0:03:56]} ({Inferior is} 14. Qxd6 Ned5 $1 15. exd5 Bxd6 $15) 14... Nd7 {[%emt 0:04:50][%cal Bf6d7,Bd7b6,Bb6c4,Bc4d2][%mdl 32]} 15. Bh3 {[%emt 0:03:51]} ({Don't play} 15. Qxd6 $6 b4 16. Bh3 Nf5 17. exf5 Bxd6 18. fxe6 fxe6 $14) 15... Nc6 {[%emt 0:04:07]} (15... Bxh3 $16 16. Rxh3 Qc7) 16. Nc1 {[%emt 0:03:14]} Nb6 {[%emt 0:01:49]} 17. Nb3 {[%emt 0:07:41]} Nc4 {[%emt 0:00:20]} 18. Nxa5 {[%emt 0:01:38]} Nxd2+ {[%emt 0:00:06]} 19. Bxd2 {[%emt 0:00:24][%cal Be3d2,Bd2a5,Ba5b4][%mdl 32]} Nxa5 {[%emt 0:00:10] [#]} 20. Nxb5 $1 {[%emt 0:00:57]} axb5 {[%emt 0:01:17]} (20... Bxh3 21. Rxh3) 21. Bxe6 fxe6 {[%emt 0:00:05]} 22. Bxa5 {[%emt 0:01:48]} Be7 {[%emt 0:00:09]} 23. Bb4 {[%emt 0:01:06]} Kd7 {[%emt 0:00:23]} 24. Rd3 {[%emt 0:01:18]} Rhf8 {[%emt 0:00:19]} 25. b3 {[%emt 0:00:51]} Kc6 {[%emt 0:00:30]} 26. Kb2 {[%emt 0:01:08] White is more active.} Rc7 {[%emt 0:00:33]} (26... Kd7 $16 {might work better.} 27. Rhd1 Rc6) 27. Rhd1 $18 {[%emt 0:01:03][%cal Rb4d6]} Rd7 {[%emt 0:00:05]} 28. a4 {[%emt 0:01:01]} bxa4 {[%emt 0:00:23]} 29. bxa4 {[%emt 0:00:02]} Rf4 {[%emt 0:00:18]} 30. Kb3 {[%emt 0:01:48]} (30. Rc3+ $18 Kb7 31. Rcd3) 30... Rxh4 $16 {[%emt 0:00:31]} 31. a5 {[%emt 0:00:09]} (31. Rc3+ $142 Kb7 32. Rcd3) 31... Rh3 $2 {[%emt 0:01:51] [#] This costs Black the game.} (31... d5 $16) 32. Ka4 $1 $18 {[%emt 0:01:23] And now Rb1 would win.} h5 $2 {[%emt 0:03:21]} (32... Rh2 33. Rc3+ Kb7) 33. gxh6 {[%emt 0:00:43]} Rxh6 {[%emt 0:00:18]} 34. Rc3+ {[%emt 0:00:48]} Kb7 {[%emt 0:00:05]} 35. Kb5 {[%emt 0:00:11]} Rh8 {[%emt 0:00:31]} 36. Rc6 {[%emt 0:01:11]} Rhd8 $2 {[%emt 0:02:58]} (36... d5 37. Rxe6 Bxb4) 37. a6+ {[%emt 0:02:15]} Ka8 {[%emt 0:00:06]} 38. Ba5 {[%emt 0:00:47]} Rb8+ {[%emt 0:00:08]} 39. Bb6 {[%emt 0:00:23]} d5 {[%emt 0:01:57]} 40. Rxe6 {[%emt 0:02:07]} d4 {[%emt 0:00:04]} 41. Kc6 {[%emt 0:30:28]} Rd6+ {[%emt 0:03:50]} 42. Rxd6 {[%emt 0:00:00] White mates.} Bxd6 {[%emt 0:00:02] KRB-KRB} 43. a7 {[%emt 0:00:00]} Rb7 {[%emt 0:00:04]} 44. Rh1 {[%emt 0:00:00]} Bf8 {[%emt 0:00:04]} 45. Rh8 {[%emt 0:00:00]} Rf7 {[%emt 0:00:04]} 46. Bc5 {[%emt 0:00:00]} Rxf3 {[%emt 0:00:24]} 47. Rxf8+ {[%emt 0:00:00]} Rxf8 {[%emt 0:00:04]} 48. Bxf8 {[%emt 0:00:00] KB-K3P} g5 {[%emt 0:00:01]} 49. Bd6 {[%emt 0:00:00]} g4 {[%emt 0:00:09]} 50. Bxe5 {[%emt 0:00:00]} Kxa7 {[%emt 0:00:03]} 51. Bxd4+ {[%emt 0:00:00]} Ka6 {[%emt 0:00:05]} 52. e5 {[%emt 0:00:00][%cal Be4e5,Be5e6,Be6e7][%mdl 32]} g3 {[%emt 0:00:02]} 53. e6 {[%emt 0:00:00]} g2 {[%emt 0:00:03]} 54. e7 {[%emt 0:00:00]} g1=R {[%emt 0:00:03]} 55. Bxg1 {[%emt 0:00:00] Weighted Error Value: White=0.12 (very precise) /Black=0.43} 1-0